fUSD/lending_fUSD_20240119
["ID","MTS","AMOUNT","RATE_DAILY","PERIOD"]
[312102717,1705625463009,150.0,0.00021548,2]
[312102718,1705625463246,150.0,0.00021581,2]
[312102719,1705625463305,150.0,0.00021543,2]
[312102720,1705625463382,150.0,0.00021583,2]
[312102721,1705625463412,150.0,0.00021519,2]
[312102722,1705625463508,150.0,0.00021543,2]
[312102723,1705625463768,150.0,0.00021549,2]
[312102724,1705625463812,206.0,0.0002109,2]
[312102725,1705625465849,2863.7354,0.0002156,2]
[312102726,1705625470148,300.0,0.00021559,2]
[312102727,1705625471716,169.34626625,0.00021442,2]
[312102728,1705625478714,150.0,0.00021577,2]
[312102729,1705625478759,150.0,0.00021569,2]
[312102730,1705625478815,150.0,0.00021558,2]
[312102731,1705625478842,151.18818117,0.00021541,2]
[312102732,1705625478870,300.0,0.00021597,2]
[312102733,1705625494156,1500.0,0.00021502,2]
[312102734,1705625494493,150.0,0.00021573,2]
[312102735,1705625494832,150.0,0.00021563,2]
[312102736,1705625494888,150.0,0.00021585,2]
[312102737,1705625498524,1500.0,0.00021531,2]
[312102738,1705625498556,1500.0,0.00021508,2]
[312102739,1705625509423,100000.0,0.0002156,2]
[312102740,1705625516452,1143.5656,0.0002156,2]
[312102741,1705625522294,160.67049631,0.00021559,2]
[312102742,1705625528064,515.60399077,0.00021599,2]
[312102743,1705625537244,2150.1249797,0.00021599,2]
[312102744,1705625552375,155.0,0.00021599,2]
[312102745,1705625651872,257.01749622,0.00012,30]
[312102746,1705625657539,150.09,0.00020867,2]
[312102747,1705625657957,150.09,0.0002126,2]
[312102748,1705625743471,150.0,0.00021561,2]
[312102749,1705625745836,159.75,0.0002066,2]
[312102750,1705625765624,151.40119,0.00021561,3]
[312102751,1705625766731,151.40119,0.00021561,3]
[312102752,1705625767526,151.40119,0.00021561,3]
[312102753,1705625768324,151.40119,0.00021561,3]
[312102754,1705625769133,151.40119,0.00021561,3]
[312102755,1705625769844,151.40119,0.00021561,3]
[312102756,1705625770625,151.40119,0.00021561,3]
[312102757,1705625771371,151.40119,0.00021561,3]
[312102758,1705625772118,151.40119,0.00021561,3]
[312102759,1705625773239,151.40119,0.00021561,3]
[312102760,1705625773726,151.40119,0.00021561,3]
[312102761,1705625774368,151.40119,0.00021561,3]
[312102762,1705625775131,151.40119,0.00021561,3]
[312102763,1705625775822,151.40119,0.00021561,3]
[312102764,1705625776530,151.40119,0.00021561,3]
[312102765,1705625794214,204.0,0.00021479,2]
[312102766,1705625803052,328.0,0.00020658,2]
[312102767,1705625810091,151.54646738,0.00021559,2]
[312102769,1705625828602,152.67814662,0.00020658,2]
[312102770,1705625858804,300.0,0.00021581,2]
[312102771,1705625862388,151.40119,0.00021561,3]
[312102772,1705625864236,151.40119,0.00021561,3]
[312102773,1705625864979,151.40119,0.00021561,3]
[312102774,1705625865748,151.40119,0.00021561,3]
[312102775,1705625866491,151.40119,0.00021561,3]
[312102776,1705625867217,151.40119,0.00021561,3]
[312102777,1705625867957,151.40119,0.00021561,3]
[312102778,1705625868729,151.40119,0.00021561,3]
[312102779,1705625869468,151.40119,0.00021561,3]
[312102780,1705625870239,151.40119,0.00021561,3]
[312102781,1705625870994,151.40119,0.00021561,3]
[312102782,1705625871747,151.40119,0.00021561,3]
[312102783,1705625872589,151.40119,0.00021561,3]
[312102784,1705625873354,151.40119,0.00021561,3]
[312102785,1705625874142,151.40119,0.00021561,3]
[312102786,1705625875136,151.40119,0.00021561,3]
[312102787,1705625875676,151.40119,0.00021561,3]
[312102788,1705625876405,151.40119,0.00021561,3]
[312102789,1705625877161,151.40119,0.00021561,3]
[312102790,1705625878390,151.40119,0.00021561,3]
[312102792,1705625884267,925.08,0.00020657,2]
[312102794,1705625954236,399.94,0.00018737,2]
[312102795,1705625954812,399.94,0.00021001,2]
[312102811,1705626098265,1500.0,0.00021599,2]
[312102812,1705626098301,300.0,0.00021535,2]
[312102813,1705626098328,150.0,0.0002156,2]
[312102814,1705626098360,1500.0,0.00021548,2]
[312102815,1705626098560,224.32311745,0.00021556,2]
[312102816,1705626103650,150.0,0.0002155,2]
[312102817,1705626103727,150.0,0.00021593,2]
[312102818,1705626103863,150.0,0.0002159,2]
[312102819,1705626103926,150.0,0.00021568,2]
[312102820,1705626103968,150.0,0.00021539,2]
[312102821,1705626104076,150.0,0.00021567,2]
[312102822,1705626104127,221.00264978,0.00021548,2]
[312102823,1705626104157,150.0,0.00021548,2]
[312102824,1705626104189,150.0,0.0002153,2]
[312102825,1705626104260,150.0,0.00021571,2]
[312102826,1705626104301,150.0,0.00021514,2]
[312102827,1705626104672,150.0,0.00021561,2]
[312102828,1705626104705,150.0,0.00021525,2]
[312102829,1705626104799,150.0,0.00021577,2]
[312102830,1705626106980,1465.1943,0.00021558,2]
[312102831,1705626111758,150.0,0.00021578,2]
[312102835,1705626200235,200.0,0.00021488,2]
[312102836,1705626230830,151.54646738,0.00021559,2]
[312102839,1705626343550,150.0,0.00021544,2]
[312102840,1705626344956,168.61,0.00020658,2]
[312102841,1705626345375,168.61,0.00021101,2]
[312102842,1705626345624,168.61,0.00021544,2]
[312102843,1705626375076,151.40119,0.00021561,3]
[312102844,1705626376014,151.40119,0.00021561,3]
[312102845,1705626376708,151.40119,0.00021561,3]
[312102846,1705626377407,151.40119,0.00021561,3]
[312102847,1705626378112,151.40119,0.00021561,3]
[312102848,1705626378789,151.40119,0.00021561,3]
[312102849,1705626379514,151.40119,0.00021561,3]
[312102850,1705626380177,151.40119,0.00021561,3]
[312102851,1705626380897,151.40119,0.00021561,3]
[312102852,1705626381598,151.40119,0.00021561,3]
[312102853,1705626382383,151.40119,0.00021561,3]
[312102854,1705626383065,151.40119,0.00021561,3]
[312102855,1705626383706,151.40119,0.00021561,3]
[312102856,1705626384438,151.40119,0.00021561,3]
[312102857,1705626385124,151.40119,0.00021561,3]
[312102858,1705626391675,151.54646738,0.00021559,2]
[312102859,1705626399611,151.40119,0.00021561,3]
[312102860,1705626400354,151.40119,0.00021561,3]
[312102861,1705626401049,151.40119,0.00021561,3]
[312102862,1705626401750,151.40119,0.00021561,3]
[312102863,1705626402495,151.40119,0.00021561,3]
[312102864,1705626413554,900.6,0.00020661,2]
[312102865,1705626442245,1000.0,0.00020659,2]
[312102866,1705626449706,379.43,0.00018741,2]
[312102867,1705626449911,379.43,0.00021005,2]
[312102868,1705626514331,204.0,0.00020855,2]
[312102869,1705626540025,152.0,0.00020197,10]
[312102870,1705626540340,152.0,0.00019893,9]
[312102871,1705626541197,152.0,0.00019588,8]
[312102872,1705626541525,152.0,0.00019284,7]
[312102873,1705626541831,152.0,0.00018979,6]
[312102874,1705626542145,152.0,0.00018675,5]
[312102875,1705626542442,152.0,0.0001837,4]
[312102876,1705626542745,152.0,0.00018066,3]
[312102877,1705626543043,243.23001466,0.00020197,5]
[312102883,1705626557690,151.54646738,0.00021559,2]
[312102892,1705626610673,150.17,0.00020864,2]
[312102893,1705626610889,150.17,0.00021425,2]
[312102900,1705626631402,-300.0,0.000216,2]
[312102901,1705626631412,-163.34641144,0.000216,2]
[312102902,1705626631422,-163.34641144,0.000216,2]
[312102903,1705626631432,-300.0,0.00021603,2]
[312102904,1705626631442,-150.0,0.00021607,2]
[312102905,1705626631452,-150.0,0.00021611,2]
[312102906,1705626631461,-6578.12681705,0.00021612,2]
[312102907,1705626631473,-353.62981947,0.00021612,2]
[312102908,1705626631484,-1252.18436291,0.00021612,2]
[312102909,1705626631501,-9189.91455537,0.00021612,2]
[312102910,1705626631510,-300.0,0.00021613,2]
[312102911,1705626631520,-9548.95108788,0.00021613,2]
[312102912,1705626631530,-150.0,0.00021614,2]
[312102913,1705626631539,-150.0,0.00021622,2]
[312102914,1705626631548,-300.0,0.00021623,2]
[312102915,1705626631558,-1500.0,0.00021624,2]
[312102916,1705626631566,-150.0,0.00021631,2]
[312102917,1705626631575,-150.0,0.00021634,2]
[312102918,1705626631585,-150.0,0.00021639,2]
[312102919,1705626631594,-900.6,0.0002164,2]
[312102920,1705626631603,-150.0,0.0002164,2]
[312102921,1705626631615,-1058.55,0.00021644,2]
[312102922,1705626631625,-150.0,0.0002165,2]
[312102923,1705626631634,-150.0,0.0002165,2]
[312102924,1705626631644,-150.09,0.00021652,2]
[312102925,1705626631653,-500.0,0.00021657,2]
[312102926,1705626631663,-14675.38856053,0.00021658,2]
[312102927,1705626631674,-327.01287504,0.00021658,2]
[312102928,1705626631711,-8597.46009483,0.00021658,2]
[312102931,1705626631736,-411.68315571,0.00021658,2]
[312102933,1705626631747,-175107.72050003,0.00021658,2]
[312102936,1705626631763,-294.6387564,0.00021658,2]
[312102938,1705626631775,-499.99,0.00021658,2]
[312103013,1705626637628,-87998.65901077,0.00021658,2]
[312103014,1705626637637,-201.06409086,0.00021658,2]
[312103015,1705626637647,-150.0,0.00021658,2]
[312103027,1705626637951,-155.0,0.00021659,2]
[312103030,1705626637961,-174.21706797,0.00021659,2]
[312103032,1705626637970,-270.96201063,0.00021659,2]
[312103034,1705626637980,-150.0,0.00021659,2]
[312103036,1705626637989,-3296.21810704,0.00021661,2]
[312103038,1705626637998,-300.02,0.00021661,2]
[312103041,1705626638007,-150.0,0.00021663,2]
[312103043,1705626638017,-150.0,0.00021665,2]
[312103044,1705626638025,-150.0,0.0002167,2]
[312103046,1705626638034,-300.0,0.0002167,2]
[312103049,1705626638043,-300.0,0.00021671,2]
[312103050,1705626638052,-371.29,0.00021676,2]
[312103052,1705626638061,-1500.0,0.00021679,2]
[312103054,1705626638070,-150.0,0.00021681,2]
[312103057,1705626638079,-150.0,0.00021682,2]
[312103059,1705626638089,-150.0,0.00021686,2]
[312103061,1705626638098,-150.0,0.00021688,2]
[312103063,1705626638106,-150.0,0.00021697,2]
[312103064,1705626638115,-150.0,0.00021698,2]
[312103066,1705626638125,-150.0,0.00021708,2]
[312103069,1705626638134,-150.0,0.00021711,2]
[312103071,1705626638143,-150.0,0.00021713,2]
[312103073,1705626638153,-150.0,0.00021715,2]
[312103075,1705626638162,-150.0,0.00021718,2]
[312103077,1705626638171,-300.0,0.00021724,2]
[312103079,1705626638180,-158.15,0.00021727,2]
[312103080,1705626638189,-150.0,0.00021735,2]
[312103083,1705626638199,-150.0,0.00021739,2]
[312103084,1705626638208,-150.0,0.0002174,2]
[312103086,1705626638217,-150.0,0.00021747,2]
[312103089,1705626638226,-150.0,0.00021756,2]
[312103090,1705626638235,-150.0,0.00021757,2]
[312103092,1705626638245,-150.0,0.00021763,2]
[312103095,1705626638254,-2189.76625576,0.00021765,2]
[312103097,1705626638270,-5618.50242791,0.00021765,2]
[312103099,1705626638279,-150.0,0.00021766,2]
[312103101,1705626638288,-525.07076067,0.00021767,2]
[312103103,1705626638297,-313.44466476,0.00021768,2]
[312103105,1705626638306,-150.0,0.00021772,2]
[312103107,1705626638315,-150.0,0.00021775,2]
[312103110,1705626638327,-150.0,0.00021775,2]
[312103112,1705626638336,-150.0,0.00021781,2]
[312103114,1705626638345,-1631.7339464,0.00021785,2]
[312103116,1705626638354,-1465.5933122,0.00021785,2]
[312103118,1705626638363,-15604.08973513,0.00021785,2]
[312103275,1705626639853,150.0,0.00021515,2]
[312103302,1705626639989,-150.0,0.00021603,2]
[312103305,1705626639999,-150.0,0.0002162,2]
[312103308,1705626640009,-150.0,0.00021655,2]
[312103311,1705626640018,-3829.62601539,0.00021785,2]
[312103320,1705626640057,150.0,0.00021545,2]
[312103325,1705626640070,-37822.28768629,0.00021785,2]
[312103332,1705626640103,-150.0,0.00021614,2]
[312103336,1705626640112,-1280.18375976,0.00021785,2]
[312103426,1705626640830,-300.0,0.00021663,2]
[312103428,1705626640839,-800.03978644,0.00021785,2]
[312103614,1705626642439,-3296.21810704,0.00021661,2]
[312103617,1705626642449,-7491.93145776,0.00021785,2]
[312103630,1705626642544,-10568.17035027,0.00021785,2]
[312103841,1705626645472,-290.92176094,0.00021785,2]
[312103854,1705626645593,-278.96515973,0.00021785,2]
[312103862,1705626645654,-770.43149471,0.00021785,2]
[312103863,1705626645666,-3877.84829181,0.00021785,2]
[312103864,1705626645714,-283.60502474,0.00021785,2]
[312103871,1705626645832,-1747.93007092,0.00021785,2]
[312103915,1705626647400,150.0,0.00021566,2]
[312103916,1705626647469,150.0,0.00021527,2]
[312103917,1705626647517,150.0,0.00021531,2]
[312103918,1705626647930,150.0,0.00021582,2]
[312103919,1705626648053,184.05297357,0.00021552,2]
[312103920,1705626648107,150.0,0.00021544,2]
[312103921,1705626655408,150.0,0.00021538,2]
[312103922,1705626655461,150.0,0.00021516,2]
[312103923,1705626657863,300.0,0.00021551,2]
[312103925,1705626663926,204.0,0.00020855,2]
[312103926,1705626678506,67454.627,0.00021558,2]
[312103934,1705626770306,150.0,0.00021428,2]
[312103935,1705626798655,151.05,0.00020723,2]
[312103936,1705626798852,151.05,0.00020887,2]
[312103937,1705626799104,151.05,0.00021051,2]
[312103938,1705626799456,151.05,0.00021214,2]
[312103939,1705626799905,151.05,0.00021378,2]
[312103940,1705626800137,151.05,0.00021542,2]
[312103941,1705626817417,-360.468869,0.0002283,7]
[312103942,1705626817441,-360.468869,0.0002283,7]
[312103943,1705626817464,-151.0,0.0002283,7]
[312103944,1705626817488,-151.0,0.00022832,7]
[312103945,1705626817511,-151.0,0.00022832,7]
[312103946,1705626817540,-526.189583,0.00022832,7]
[312103947,1705626817564,-526.189583,0.00022832,7]
[312103948,1705626817589,-529.010673,0.00022832,7]
[312103949,1705626817613,-244.672423,0.00022832,7]
[312103950,1705626840948,804.53562439,0.000196,5]
[312103951,1705626864709,-151.0,0.0002283,7]
[312103952,1705626864733,-1269.679033,0.0002283,7]
[312103953,1705626864756,-1269.679033,0.0002283,7]
[312103954,1705626864780,-151.0,0.0002283,7]
[312103955,1705626865053,-158.641934,0.00022832,7]
[312103956,1705626866508,817.71,0.00020715,2]
[312103957,1705626869021,-125.696316,0.00022832,7]
[312103958,1705626869045,-151.0,0.00022832,7]
[312103959,1705626869070,-151.0,0.00022832,7]
[312103960,1705626869092,-151.0,0.00022832,7]
[312103961,1705626869115,-244.442349,0.00022832,7]
[312103962,1705626869138,-151.0,0.00022832,7]
[312103963,1705626869161,-192.618405,0.00022832,7]
[312103964,1705626869184,-151.0,0.00022832,7]
[312103965,1705626869208,-151.0,0.00022832,7]
[312103966,1705626869230,-151.0,0.00022832,7]
[312103967,1705626869253,-151.0,0.00022832,7]
[312103968,1705626869276,-151.0,0.00022832,7]
[312103969,1705626869299,-151.0,0.00022832,7]
[312103970,1705626869324,-151.0,0.00022832,7]
[312103971,1705626869351,-151.0,0.00022832,7]
[312103972,1705626869374,-258.764337,0.00022832,7]
[312103973,1705626869398,-258.764337,0.00022832,7]
[312103974,1705626869424,-107.714256,0.00022832,7]
[312103975,1705626873892,204.0,0.00021253,2]
[312103976,1705626906385,-43.285744,0.00022832,7]
[312103977,1705626906409,-106.714256,0.00022832,7]
[312103978,1705626914085,200.0,0.00020712,2]
[312103979,1705626941296,392.89,0.00019098,2]
[312103980,1705626941748,392.89,0.00021361,2]
[312103981,1705626953583,-151.0,0.000225,7]
[312103982,1705626953607,-151.0,0.000225,7]
[312103983,1705626953630,-151.0,0.000225,7]
[312103984,1705626953653,-151.0,0.000225,7]
[312103985,1705626953678,-232.887903,0.000225,7]
[312103986,1705626953702,-232.887903,0.000225,7]
[312103987,1705626953726,-44.285744,0.00022832,7]
[312103988,1705626953751,-151.0,0.00022832,7]
[312103989,1705626953774,-152.315517,0.00022832,7]
[312103990,1705626953797,-151.0,0.00022832,7]
[312103991,1705626953823,-151.0,0.00022832,7]
[312103992,1705626953846,-199.811569,0.00022832,7]
[312103993,1705626953870,-80.811364,0.00022832,7]
[312103994,1705627061767,175.73,0.00020919,2]
[312103997,1705627197433,151.40119,0.00021561,3]
[312103998,1705627205228,151.40119,0.00021561,3]
[312103999,1705627205833,151.40119,0.00021561,3]
[312104000,1705627206640,151.40119,0.00021561,3]
[312104001,1705627209863,151.40119,0.00021561,3]
[312104002,1705627235968,151.40119,0.00021561,3]
[312104003,1705627236586,151.40119,0.00021561,3]
[312104004,1705627237215,151.40119,0.00021561,3]
[312104005,1705627237849,151.40119,0.00021561,3]
[312104006,1705627264539,185.18,0.00020712,2]
[312104007,1705627328709,2169.58788,0.0003,120]
[312104008,1705627366903,840.0,0.00020779,2]
[312104009,1705627395646,795.43,0.00020788,2]
[312104010,1705627396482,371.19,0.0001887,2]
[312104011,1705627396817,371.19,0.00021134,2]
[312104012,1705627448101,183.92343294,0.00021506,2]
[312104013,1705627494808,9887.83,0.00020781,2]
[312104021,1705627593610,204.0,0.00020688,2]
[312104044,1705627656506,203.99994,0.00020688,2]
[312104050,1705627695464,150.09,0.00021002,2]
[312104051,1705627695848,150.09,0.00021567,2]
[312104060,1705627798083,328.0,0.00020799,2]
[312104061,1705627817150,187.60084384,0.00021567,2]
[312104062,1705627823273,766.94098387,0.00021425,2]
[312104072,1705627831648,-252.7154311,0.00021605,2]
[312104078,1705627831847,-384.81947215,0.00021605,2]
[312104079,1705627831859,-321.90484521,0.00021605,2]
[312104080,1705627831871,-562.4996314,0.00021605,2]
[312104081,1705627831921,-3812.15806349,0.00021605,2]
[312104083,1705627831931,-815.11462212,0.00021606,2]
[312104085,1705627831940,-730.75,0.0002162,2]
[312104087,1705627831949,-736.88,0.00021624,2]
[312104089,1705627831958,-719.98,0.00021629,2]
[312104091,1705627831967,-734.85,0.00021633,2]
[312104093,1705627831977,-300.0,0.00021643,2]
[312104095,1705627831986,-846.84,0.00021644,2]
[312104097,1705627831995,-725.06,0.00021658,2]
[312104099,1705627832005,-851.56,0.00021658,2]
[312104101,1705627832014,-499.99,0.00021658,2]
[312104103,1705627832023,-3027.4366,0.00021685,2]
[312104104,1705627832033,-3595.9665,0.00021687,2]
[312104107,1705627832043,-151.05,0.00021705,2]
[312104109,1705627832054,-185.18,0.00021747,2]
[312104110,1705627832063,-1279.27593608,0.00021767,3]
[312104112,1705627832073,-795.43,0.00021767,2]
[312104115,1705627832085,-340.69835025,0.00021779,2]
[312104116,1705627832094,-235.0,0.00021784,2]
[312104118,1705627832103,-150.01,0.00021784,2]
[312104120,1705627832112,-3296.21810704,0.00021784,2]
[312104122,1705627832122,-480.47330896,0.00021785,2]
[312104124,1705627832132,-411.89988734,0.00021786,2]
[312104127,1705627832142,-175.39494762,0.00021787,2]
[312104129,1705627832152,-158.60896714,0.00021787,2]
[312104130,1705627832161,-1626.19485391,0.00021787,2]
[312104132,1705627832170,-246.60959394,0.00021787,2]
[312104134,1705627832179,-236.17727712,0.00021787,2]
[312104136,1705627832188,-256.98504056,0.00021787,2]
[312104138,1705627832198,-234.89781562,0.00021787,2]
[312104140,1705627832207,-1911.90313155,0.00021787,2]
[312104142,1705627832216,-27864.88380036,0.00021787,2]
[312104215,1705627837705,-850.09190146,0.00021784,2]
[312104216,1705627837714,-627.90812343,0.00021787,2]
[312104217,1705627837726,-29321.17069854,0.00021787,2]
[312104218,1705627837734,-256.04000001,0.00021788,2]
[312104219,1705627837743,-500.0,0.00021788,2]
[312104220,1705627837752,-223.7152768,0.00021789,2]
[312104221,1705627837762,-273.81795193,0.00021789,2]
[312104222,1705627837771,-346.51658349,0.00021789,2]
[312104223,1705627837780,-587.81322623,0.00021789,2]
[312104224,1705627837789,-409.12283997,0.00021789,2]
[312104225,1705627837798,-155.44082438,0.00021789,2]
[312104226,1705627837808,-308.66623732,0.00021789,2]
[312104227,1705627837817,-212.23385085,0.00021789,2]
[312104228,1705627837826,-306.94907181,0.00021789,2]
[312104229,1705627837835,-155.0,0.00021789,2]
[312104230,1705627837844,-364.59644785,0.00021789,2]
[312104231,1705627837854,-213.42804886,0.00021789,2]
[312104232,1705627837863,-155.48516503,0.00021789,2]
[312104233,1705627837873,-224.85410162,0.00021789,2]
[312104234,1705627837885,-2619.42571149,0.00021789,2]
[312104235,1705627837894,-155.52034948,0.00021789,2]
[312104236,1705627837904,-7774.2456972,0.00021789,2]
[312104237,1705627837913,-387.95276072,0.00021789,2]
[312104238,1705627837922,-280.61526045,0.00021789,2]
[312104239,1705627837932,-155.37801653,0.00021789,2]
[312104240,1705627837941,-1915.13815693,0.00021789,2]
[312104241,1705627837951,-288.74305767,0.00021789,2]
[312104242,1705627837960,-291.78559589,0.00021789,2]
[312104243,1705627837970,-183.68968646,0.00021789,2]
[312104244,1705627837979,-745.68030549,0.00021789,2]
[312104245,1705627837988,-162.32880254,0.00021789,2]
[312104246,1705627837997,-206.91186275,0.00021789,2]
[312104247,1705627838007,-2519.34700671,0.00021789,2]
[312104248,1705627838016,-155.99624117,0.00021789,2]
[312104249,1705627838026,-222.7246654,0.00021789,2]
[312104250,1705627838035,-688.91552554,0.00021789,2]
[312104251,1705627838044,-155.0,0.00021789,2]
[312104252,1705627838054,-155.0,0.00021789,2]
[312104253,1705627838063,-243.40859199,0.00021789,2]
[312104254,1705627838073,-206.40443824,0.00021789,2]
[312104255,1705627838084,-952.74744043,0.00021789,2]
[312104256,1705627838092,-224.9651623,0.00021789,2]
[312104257,1705627838102,-155.06337949,0.00021789,2]
[312104258,1705627838111,-233.82560412,0.00021789,2]
[312104259,1705627838120,-235.04520878,0.00021789,2]
[312104260,1705627838132,-160.27849171,0.00021789,2]
[312104261,1705627838141,-155.0,0.00021789,2]
[312104262,1705627838151,-155.64640327,0.00021789,2]
[312104263,1705627838162,-473.62078422,0.00021789,2]
[312104264,1705627838173,-158.09714076,0.00021789,2]
[312104265,1705627838183,-155.05571586,0.00021789,2]
[312104267,1705627838192,-703.79934886,0.00021789,2]
[312104269,1705627838201,-475.03562767,0.00021789,2]
[312104271,1705627838210,-486.30659878,0.00021789,2]
[312104273,1705627838220,-282.98051574,0.00021789,2]
[312104274,1705627838229,-156.22660165,0.00021789,2]
[312104275,1705627838238,-203.876292,0.00021789,2]
[312104276,1705627838249,-501.09834726,0.00021789,2]
[312104277,1705627838258,-23511.55724499,0.00021789,2]
[312104278,1705627838267,-163.7690261,0.00021789,2]
[312104279,1705627838276,-1189.23243156,0.00021789,2]
[312104280,1705627838286,-3620.5136731,0.0002179,2]
[312104281,1705627838295,-6639.43225503,0.000218,2]
[312104282,1705627838316,-2861.16401675,0.000218,2]
[312104283,1705627838364,-9628.58496161,0.000218,2]
[312104284,1705627838374,-2868.00888599,0.00021818,2]
[312104285,1705627840195,-522.86170023,0.00021818,2]
[312104286,1705627840301,-251.97835253,0.00021818,2]
[312104287,1705627840928,-321.1046262,0.00021818,2]
[312104356,1705627842655,-1036.04643505,0.00021818,2]
[312104358,1705627842665,-151.54646738,0.00021818,2]
[312104360,1705627842674,-371.29,0.00021839,2]
[312104361,1705627842682,-151.05,0.00021869,2]
[312104363,1705627842691,-178.77206168,0.00021882,2]
[312104365,1705627842701,-14838.60398102,0.00021892,2]
[312104367,1705627842713,-415.60392382,0.00021892,2]
[312104369,1705627843128,-9321.5086878,0.00021892,2]
[312104370,1705627843142,-305.0,0.00021892,2]
[312104375,1705627845649,-450.19234409,0.00021892,2]
[312104376,1705627845786,-5926.72383597,0.00021892,2]
[312104377,1705627845798,-300.4786954,0.00021892,2]
[312104378,1705627845809,-847.86101434,0.00021892,2]
[312104379,1705627845821,-512.6399146,0.00021892,2]
[312104380,1705627845890,-253.35759983,0.00021892,2]
[312104381,1705627845901,-273.23497716,0.00021892,2]
[312104389,1705627869410,626.21593454,0.00021014,2]
[312104391,1705627912568,151.0,0.00029863,120]
[312104392,1705627925143,206.0,0.00021144,2]
[312104393,1705627926607,352.33,0.00019599,2]
[312104395,1705627952027,264.8,0.00021089,2]
[312104397,1705627963722,689.37,0.00021063,2]
[312104398,1705627989430,205.9998,0.00021144,2]
[312104410,1705628244589,151.0,0.00029863,120]
[312104412,1705628270507,737.6,0.00020826,2]
[312104413,1705628307435,150.92801816,0.00020918,2]
[312104414,1705628314459,397.0,0.00021029,2]
[312104415,1705628390149,334.71,0.00018916,2]
[312104416,1705628390488,334.71,0.0002118,2]
[312104417,1705628426518,680.52,0.00020826,2]
[312104418,1705628478226,151.0,0.00029863,120]
[312104420,1705628615009,397.0,0.00020819,2]
[312104421,1705628625471,150.17,0.00021036,2]
[312104422,1705628644156,206.0,0.00020698,2]
[312104423,1705628704554,409.92,0.00020803,2]
[312104424,1705628708549,151.0,0.00029989,120]
[312104425,1705628764214,205.0,0.00020698,2]
[312104426,1705628850370,665.32,0.00020828,2]
[312104427,1705628867538,220.27,0.00020798,2]
[312104428,1705628867948,220.27,0.00020963,2]
[312104429,1705628868209,220.27,0.00021127,2]
[312104430,1705628868413,220.27,0.00021291,2]
[312104431,1705628869300,220.27,0.00021455,2]
[312104432,1705628925998,317.18,0.00018858,2]
[312104433,1705628928503,317.18,0.00021122,2]
[312104440,1705628948943,6913.53,0.00020781,2]
[312104498,1705628977183,1000.0,0.000215,2]
[312104500,1705629006806,206.0,0.00021407,2]
[312104507,1705629031770,-955.35774204,0.000216,2]
[312104509,1705629031783,-44.64225796,0.000216,2]
[312104510,1705629031792,-254.78142363,0.000216,2]
[312104511,1705629031826,-745.21857637,0.000216,2]
[312104512,1705629031835,-200.0,0.00021605,2]
[312104513,1705629031844,-220.27,0.00021619,2]
[312104514,1705629031853,-677.47,0.00021644,2]
[312104515,1705629031863,-724.89,0.00021644,2]
[312104516,1705629031872,-716.44,0.00021644,2]